Workbook

Sheet Pasiūlymas
A1: Perkantysis subjektas, kuriam teikiamas pasiūlymas: | C1: VŠĮ Kauno klinikinė ligoninė
B3: PASIŪLYMAS
B4: Ortopedinių traumatologinių implantų pirkimas
A6: Data: | B6: 2019.06.28
A7: Nr.:
A8: Vieta: | B8: Vilnius
A10: Tiekėjo arba tiekėjų grupės narių pavadinimas (-ai) | C10: UAB Kristameda
A11: Tiekėjo arba tiekėjo grupės narių juridinio asmens kodas (-ai) (tuo atveju, jei pasiūlymą teikia fizinis asmuo - verslo pažymėjimo Nr. ar pan.) | C11: 301245735
A12: Tiekėjo arba tiekėjo grupės narių PVM mokėtojo kodas (-ai) | C12: LT100003755213
A13: Tiekėjų grupės narys, atstovaujantis arba vadovaujantis tiekėjų grupei (pildoma, jei pasiūlymą teikia tiekėjų grupė)
A14: Tiekėjo valdymo ar priežiūros organo narys (-iai) ar kitas asmuo (-ys), turintis (-ys) teisę atstovauti tiekėjui ar jį kontroliuoti, jo vardu priimti sprendimą, sudaryti sandorį
A15: Tiekėjo arba atstovaujančio tiekėjų grupės nario adresas, telefono numeris, fakso numeris, el. paštas | C15: Treniotos g. 33, 08115 Vilnius; 8 600 68931; kristameda@gmail.com
A16: Tiekėjo arba atstovaujančio tiekėjų grupės nario banko pavadinimas, banko kodas, sąskaitos Nr. | C16: LT157044060008231151, AB SEB bankas
A17: Asmens, įgalioto pasirašyti sutartį, vardas, pavardė, pareigos | C17: Direktorius Gintaras Vaitkevičius
A18: Asmens, atsakingo už pirkimą, vardas, pavardė, telefono numeris, el. paštas | C18: Gintaras Vaitkevičius, 8 600 68931, kristameda@gmail.com
A24: Siūlomas pirkimo objektas visiškai atitinka pirkimo sąlygose nustatytus reikalavimus ir jo kaina yra:
A28: Nr. | B28: Pavadinimas | C28: Maksimalus kiekis | D28: Mato vienetas | E28: Vieneto įkaina be PVM, Eur | F28: Suma be PVM, Eur | G28: Siūlomos prekės pavadinimas, gamintojas, prekės kodas, katalogo psl. | H28: Siūlomo produkto parametrai
A29: 1. | B29: Plokštelės, fiksuojamos ø2,0mm sraigtais
A30: 1.1. | B30: 1,0 ± 0,1 mm storio 105°-115° L formos plokštelė, 4 kiaurymių, kairės pusės, 21 ± 1,0 mm ilgio, pagaminta iš titano. Fiksuojama Ø 2,0 mm kortikaliniais sraigtais. | C30: 10 | D30: vnt. | E30: 19.63 | F30: =IF(ISBLANK(E30),"", PRODUCT(C30,E30)) -> 196.3 | G30: 20138204, katalogas 1, p. 106, Changzhou Kanghui Medical Innovation Co., Ltd. a Medtronic company
A31: 1.1.1. | B31: 1,0 ± 0,1 mm storio 105°-115° L formos plokštelė, 4 kiaurymių, kairės pusės, 21 ± 1,0 mm ilgio, pagaminta iš titano. Fiksuojama Ø 2,0 mm kortikaliniais sraigtais. | H31: 1,0 mm storio 106° L formos plokštelė, 4 skylių, kairės pusės, 21 mm ilgio, pagaminta iš titano. Fiksuojama Ø 2,0 mm kortikaliniais sraigtais.
A32: 1.2. | B32: 1,0 ± 0,1 mm storio 105°-115° L formos plokštelė, 4 kiaurymių, dešinės pusės, 21 ± 1,0 mm ilgio, pagaminta iš titano. Fiksuojama Ø 2,0 mm kortikaliniais sraigtais. | C32: 10 | D32: vnt. | E32: 19.63 | F32: =IF(ISBLANK(E32),"", PRODUCT(C32,E32)) -> 196.3 | G32: 20138104, katalogas 1, p. 106, Changzhou Kanghui Medical Innovation Co., Ltd. a Medtronic company
A33: 1.2.1. | B33: 1,0 ± 0,1 mm storio 105°-115° L formos plokštelė, 4 kiaurymių, dešinės pusės, 21 ± 1,0 mm ilgio, pagaminta iš titano. Fiksuojama Ø 2,0 mm kortikaliniais sraigtais. | H33: 1,0 mm storio 106° L formos plokštelė, 4 skylių, dešinės pusės, 21 mm ilgio, pagaminta iš titano. Fiksuojama Ø 2,0 mm kortikaliniais sraigtais.
A34: 1.3. | B34: 1,0 ± 0,1 mm storio H formos plokštelė, 4 kiaurymių, pagaminta iš titano. Fiksuojama Ø 2,0 mm kortikaliniais sraigtais. | C34: 10 | D34: vnt. | E34: 19.63 | F34: =IF(ISBLANK(E34),"", PRODUCT(C34,E34)) -> 196.3 | G34: 20121004, katalogas 1, p. 106, Changzhou Kanghui Medical Innovation Co., Ltd. a Medtronic company
A35: 1.3.1. | B35: 1,0 ± 0,1 mm storio H formos plokštelė, 4 kiaurymių, pagaminta iš titano. Fiksuojama Ø 2,0 mm kortikaliniais sraigtais. | H35: 1,0 mm storio H formos plokštelė, 4 skylių, pagaminta iš titano. Fiksuojama Ø 2,0 mm kortikaliniais sraigtais.
A36: 1.4. | B36: 1,0 ± 0,2 mm storio tiesi plokštelė, 4 skylių, 20-25 mm ilgio, pagaminta iš titano. Fiksuojama Ø 2,0 mm kortikaliniais sraigtais. | C36: 10 | D36: vnt. | E36: 19.63 | F36: =IF(ISBLANK(E36),"", PRODUCT(C36,E36)) -> 196.3 | G36: 20101004, katalogas 1, p. 106, Changzhou Kanghui Medical Innovation Co., Ltd. a Medtronic company
A37: 1.4.1. | B37: 1,0 ± 0,2 mm storio tiesi plokštelė, 4 skylių, 20-25 mm ilgio, pagaminta iš titano. Fiksuojama Ø 2,0 mm kortikaliniais sraigtais. | H37: 1,0 mm storio tiesi plokštelė, 4 skylių, 25 mm ilgio, pagaminta iš titano. Fiksuojama Ø 2,0 mm kortikaliniais sraigtais.
A38: 1.5. | B38: 1,0 ± 0,2 mm storio tiesi plokštelė, 5 kiaurymių, 25-31 mm ilgio, pagaminta iš titano. Fiksuojama Ø 2,0 mm kortikaliniais sraigtais. | C38: 10 | D38: vnt. | E38: 19.63 | F38: =IF(ISBLANK(E38),"", PRODUCT(C38,E38)) -> 196.3 | G38: 20101005, katalogas 1, p. 106, Changzhou Kanghui Medical Innovation Co., Ltd. a Medtronic company
A39: 1.5.1. | B39: 1,0 ± 0,2 mm storio tiesi plokštelė, 5 kiaurymių, 25-31 mm ilgio, pagaminta iš titano. Fiksuojama Ø 2,0 mm kortikaliniais sraigtais. | H39: 1,0 mm storio tiesi plokštelė, 5 skylių, 31 mm ilgio, pagaminta iš titano. Fiksuojama Ø 2,0 mm kortikaliniais sraigtais.
A40: 1.6. | B40: Mini kondiliarinė užrakinama plokštelė, pagaminta iš titano. Fiksuojama ø 2,0 mm užrakinamais ir ø 2,0 mm kortikaliniais sraigtais | C40: 1 | D40: vnt. | E40: 126 | F40: =IF(ISBLANK(E40),"", PRODUCT(C40,E40)) -> 126 | G40: 24243100, katalogas 1, p. 57, Changzhou Kanghui Medical Innovation Co., Ltd. a Medtronic company
A41: 1.6.1. | B41: 7 kiaurymių, iš kurių viena kompresinė, dešinės pusės | H41: Mini kondiliarinė užrakinama plokštelė, 7 kiaurymių, iš kurių viena kompresinė, dešinės pusės, pagaminta iš titano. Fiksuojama Ø 2,0 mm užrakinamais ir Ø 2,0 mm kortikaliniais sraigtais.
A42: 1.7. | B42: Mini kondiliarinė užrakinama plokštelė, pagaminta iš titano. Fiksuojama ø 2,0 mm užrakinamais ir ø 2,0 mm kortikaliniais sraigtais | C42: 1 | D42: vnt. | E42: 126 | F42: =IF(ISBLANK(E42),"", PRODUCT(C42,E42)) -> 126 | G42: 24243200, katalogas 1, p. 57, Changzhou Kanghui Medical Innovation Co., Ltd. a Medtronic company
A43: 1.7.1. | B43: 7 kiaurymių, iš kurių viena kompresinė, kairės pusės | H43: Mini kondiliarinė užrakinama plokštelė, 7 kiaurymių, iš kurių viena kompresinė, kairės pusės, pagaminta iš titano. Fiksuojama Ø 2,0 mm užrakinamais ir Ø 2,0 mm kortikaliniais sraigtais.
A44: 1.8. | B44: 1,0 ± 0,05 mm storio 90° L formos plokštelė, 4 kiaurymių, kairės pusės, 19 ± 1,0 mm ilgio, pagaminta iš titano. Fiksuojama Ø 2,0 mm kortikaliniais sraigtais. | C44: 5 | D44: vnt. | E44: 19.63 | F44: =IF(ISBLANK(E44),"", PRODUCT(C44,E44)) -> 98.15 | G44: 20135204, katalogas 1, p. 106, Changzhou Kanghui Medical Innovation Co., Ltd. a Medtronic company
A45: 1.8.1. | B45: 1,0 ± 0,05 mm storio 90° L formos plokštelė, 4 kiaurymių, kairės pusės, 19 ± 1,0 mm ilgio, pagaminta iš titano. Fiksuojama Ø 2,0 mm kortikaliniais sraigtais. | H45: 1,0 mm storio 90° L formos plokštelė, 4 skylių, kairės pusės, 19 mm ilgio, pagaminta iš titano. Fiksuojama Ø 2,0 mm kortikaliniais sraigtais.
A46: 1.9. | B46: 1,0 ± 0,05 mm storio 90° L formos plokštelė, 4 kiaurymių, dešinės pusės, 19 ± 1,0 mm ilgio, pagaminta iš titano. Fiksuojama Ø 2,0 mm kortikaliniais sraigtais. | C46: 5 | D46: vnt. | E46: 19.63 | F46: =IF(ISBLANK(E46),"", PRODUCT(C46,E46)) -> 98.15 | G46: 20135104, katalogas 1, p. 106, Changzhou Kanghui Medical Innovation Co., Ltd. a Medtronic company
A47: 1.9.1. | B47: 1,0 ± 0,05 mm storio 90° L formos plokštelė, 4 kiaurymių, dešinės pusės, 19 ± 1,0 mm ilgio, pagaminta iš titano. Fiksuojama Ø 2,0 mm kortikaliniais sraigtais. | H47: 1,0 mm storio 90° L formos plokštelė, 4 skylių, dešinės pusės, 19 mm ilgio, pagaminta iš titano. Fiksuojama Ø 2,0 mm kortikaliniais sraigtais.
A48: 1.10. | B48: 1,3 ± 0,05 mm storio Y formos užrakinama plokštelė, 7 kiaurymių plokštelės "stiebe", 3 kiaurymių "galvoje", pagaminta iš titano. Fiksuojama Ø 2,0 mm užrakinamais ir Ø 2,0 mm kortikaliniais sraigtais. | C48: 15 | D48: vnt. | E48: 95.43 | F48: =IF(ISBLANK(E48),"", PRODUCT(C48,E48)) -> 1431.45 | G48: 29476307, katalogas 1, p. 56, Changzhou Kanghui Medical Innovation Co., Ltd. a Medtronic company
A49: 1.10.1. | B49: 1,3 ± 0,05 mm storio Y formos užrakinama plokštelė, 7 kiaurymių plokštelės "stiebe", 3 kiaurymių "galvoje", pagaminta iš titano. Fiksuojama Ø 2,0 mm užrakinamais ir Ø 2,0 mm kortikaliniais sraigtais. | H49: 1,3 mm storio Y formos užrakinama plokštelė, 7 kiaurymių plokštelės "stiebe", 3 kiaurymių "galvoje", pagaminta iš titano. Fiksuojama Ø 2,0 mm užrakinamais ir Ø 2,0 mm kortikaliniais sraigtais.
A50: 1.11. | B50: 1,0 ± 0,1 mm storio T formos plokštelė, 2 kiaurymių plokštelės "stiebe", 2 kiaurymių "galvoje", 19 ± 1,0 mm ilgio, pagaminta iš titano. Fiksuojama Ø 2,0 mm kortikaliniais sraigtais. | C50: 10 | D50: vnt. | E50: 19.63 | F50: =IF(ISBLANK(E50),"", PRODUCT(C50,E50)) -> 196.3 | G50: 20123004, katalogas 1, p. 107, Changzhou Kanghui Medical Innovation Co., Ltd. a Medtronic company
A51: 1.11.1. | B51: 1,0 ± 0,1 mm storio T formos plokštelė, 2 kiaurymių plokštelės "stiebe", 2 kiaurymių "galvoje", 19 ± 1,0 mm ilgio, pagaminta iš titano. Fiksuojama Ø 2,0 mm kortikaliniais sraigtais. | H51: 1,0 mm sorio T formos plokštelė, 2 kiaurymių plokštelės "stiebe", 2 kiaurymių "galvoje", 19 mm ilgio, pagaminta iš titano. Fiksuojama Ø 2,0 mm kortikaliniais sraigtais.
A52: 1.12. | B52: 1,0 ± 0,2 mm storio tiesi plokštelė, 6 kiaurymių, 30-37 mm ilgio, pagaminta iš titano. Fiksuojama Ø 2,0 mm kortikaliniais sraigtais. | C52: 10 | D52: vnt. | E52: 19.63 | F52: =IF(ISBLANK(E52),"", PRODUCT(C52,E52)) -> 196.3 | G52: 20101006, katalogas 1, p. 106, Changzhou Kanghui Medical Innovation Co., Ltd. a Medtronic company
A53: 1.12.1. | B53: 1,0 ± 0,2 mm storio tiesi plokštelė, 6 kiaurymių, 30-37 mm ilgio, pagaminta iš titano. Fiksuojama Ø 2,0 mm kortikaliniais sraigtais. | H53: 1,0 mm storio tiesi plokštelė, 6 skylių, 37 mm ilgio, pagaminta iš titano. Fiksuojama Ø 2,0 mm kortikaliniais sraigtais.
A54: 1.13. | B54: 1,3-1,5 mm storio T formos užrakinama kondiliarinė plokštelė, 7 kiaurymių plokštelės "stiebe", 2 kiaurymių "galvoje", su tarpu tarp kiaurymių, 54 ± 1,0 mm ilgio, pagaminta iš titano. Fiksuojama Ø 2,0 mm užrakinamais ir Ø 2,0 mm kortikaliniais sraigtais. | C54: 150 | D54: vnt | E54: 95.43 | F54: =IF(ISBLANK(E54),"", PRODUCT(C54,E54)) -> 14314.5 | G54: 29475307, katalogas 1, p. 56, Changzhou Kanghui Medical Innovation Co., Ltd. a Medtronic company
A55: 1.13.1. | B55: 1,3-1,5 mm storio T formos užrakinama kondiliarinė plokštelė, 7 kiaurymių plokštelės "stiebe", 2 kiaurymių "galvoje", su tarpu tarp kiaurymių, 54 ± 1,0 mm ilgio, pagaminta iš titano. Fiksuojama Ø 2,0 mm užrakinamais ir Ø 2,0 mm kortikaliniais sraigtais. | H55: 1,5 mm storio T formos užrakinama kondiliarinė plokštelė, 7 kiaurymių plokštelės "stiebe", 2 kiaurymių "galvoje", su tarpu tarp kiaurymių, 54 mm ilgio, pagaminta iš titano. Fiksuojama Ø 2,0 mm užrakinamais ir Ø 2,0 mm kortikaliniais sraigtais.
A56: 1.13.2. | B56: Perkančioji organizacija prašo 1 dalies 1.13 objekto pavyzdžio 1 vnt. pasirinktinai | H56: 1,5 mm storio T formos užrakinama kondiliarinė plokštelė, 7 kiaurymių plokštelės "stiebe", 2 kiaurymių "galvoje", su tarpu tarp kiaurymių, 54 mm ilgio, pagaminta iš titano. Fiksuojama Ø 2,0 mm užrakinamais ir Ø 2,0 mm kortikaliniais sraigtais.
A57: 1.14. | B57: 1,3 ± 0,05 mm storio T formos užrakinama plokštelė, pagaminta iš titano. Fiksuojama Ø 2,0 mm užrakinamais ir Ø 2,0 mm kortikaliniais sraigtais | C57: 50 | D57: vnt | E57: 95.43 | F57: =IF(ISBLANK(E57),"", PRODUCT(C57,E57)) -> 4771.5 | G57: 29476207, katalogas 1, p. 56, Changzhou Kanghui Medical Innovation Co., Ltd. a Medtronic company
A58: 1.14.1. | B58: 7 kiaurymės plokštelės "stiebe", 2 kiaurymės "galvoje", 52 ± 1,0 mm ilgio | H58: 1,3 mm storio T formos užrakinama plokštelė, pagaminta iš titano. Fiksuojama Ø 2,0 mm užrakinamais ir Ø 2,0 mm kortikaliniais sraigtais. 7 kiaurymės plokštelės "stiebe", 2 kiaurymės "galvoje", 52,5 mm ilgio.
A59: 1.14.2. | B59: Perkančioji organizacija prašo1 dalies 1.14 objekto pavyzdžio 1 vnt. pasirinktinai | H59: 1,3 mm storio T formos užrakinama plokštelė, pagaminta iš titano. Fiksuojama Ø 2,0 mm užrakinamais ir Ø 2,0 mm kortikaliniais sraigtais. 7 kiaurymės plokštelės "stiebe", 2 kiaurymės "galvoje", 52,5 mm ilgio.
A60: 1.15. | B60: 1,3 ± 0,05 mm storio T formos užrakinama plokštelė, pagaminta iš titano. Fiksuojama Ø 2,0 mm užrakinamais ir Ø 2,0 mm kortikaliniais sraigtais | C60: 20 | D60: vnt | E60: 95.43 | F60: =IF(ISBLANK(E60),"", PRODUCT(C60,E60)) -> 1908.6 | G60: 29476107, katalogas 1, p. 56, Changzhou Kanghui Medical Innovation Co., Ltd. a Medtronic company
A61: 1.15.1. | B61: 7 kiaurymės plokštelės "stiebe", 3 kiaurymės "galvoje", 50 ± 3,0 mm ilgio | H61: 1,3 mm storio T formos užrakinama plokštelė, pagaminta iš titano. Fiksuojama Ø 2,0 mm užrakinamais ir Ø 2,0 mm kortikaliniais sraigtais. 7 kiaurymės plokštelės "stiebe", 3 kiaurymės "galvoje", 52,5 mm ilgio.
A62: 1.15.2. | B62: Perkančioji organizacija prašo1 dalies 1.15 objekto pavyzdžio 1 vnt. pasirinktinai | H62: 1,3 mm storio T formos užrakinama plokštelė, pagaminta iš titano. Fiksuojama Ø 2,0 mm užrakinamais ir Ø 2,0 mm kortikaliniais sraigtais. 7 kiaurymės plokštelės "stiebe", 3 kiaurymės "galvoje", 52,5 mm ilgio.
A63: 1.16. | B63: 1,3 ± 0,05 mm storio tiesi užrakinama kompresinė plokštelė, pagaminta iš titano. Fiksuojama Ø 2,0 mm užrakinamais ir Ø 2,0 mm kortikaliniais sraigtais. | C63: 15 | D63: vnt | E63: 43.56 | F63: =IF(ISBLANK(E63),"", PRODUCT(C63,E63)) -> 653.4 | G63: 29475404, katalogas 1, p. 56, Changzhou Kanghui Medical Innovation Co., Ltd. a Medtronic company
A64: 1.16.1. | B64: 4 kiaurymių | H64: 1,3 mm storio tiesi užrakinama kompresinė plokštelė, pagaminta iš titano. Fiksuojama Ø 2,0 mm užrakinamais ir Ø 2,0 mm kortikaliniais sraigtais. 4 kiaurymių.
A65: 1.17. | B65: 1,3 ± 0,05 mm storio tiesi užrakinama kompresinė plokštelė, pagaminta iš titano. Fiksuojama Ø 2,0 mm užrakinamais ir Ø 2,0 mm kortikaliniais sraigtais. | C65: 50 | D65: vnt | E65: 43.56 | F65: =IF(ISBLANK(E65),"", PRODUCT(C65,E65)) -> 2178 | G65: 29475405, katalogas 1, p. 56, Changzhou Kanghui Medical Innovation Co., Ltd. a Medtronic company
A66: 1.17.1. | B66: 5 kiaurymių | H66: 1,3 mm storio tiesi užrakinama kompresinė plokštelė, pagaminta iš titano. Fiksuojama Ø 2,0 mm užrakinamais ir Ø 2,0 mm kortikaliniais sraigtais. 5 kiaurymių.
A67: 1.18. | B67: 1,3 ± 0,05 mm storio tiesi užrakinama kompresinė plokštelė, pagaminta iš titano. Fiksuojama Ø 2,0 mm užrakinamais ir Ø 2,0 mm kortikaliniais sraigtais. | C67: 45 | D67: vnt | E67: 43.56 | F67: =IF(ISBLANK(E67),"", PRODUCT(C67,E67)) -> 1960.2 | G67: 29475406, katalogas 1, p. 56, Changzhou Kanghui Medical Innovation Co., Ltd. a Medtronic company
A68: 1.18.1. | B68: 6 kiaurymių | H68: 1,3 mm storio tiesi užrakinama kompresinė plokštelė, pagaminta iš titano. Fiksuojama Ø 2,0 mm užrakinamais ir Ø 2,0 mm kortikaliniais sraigtais. 6 kiaurymių.
A69: 1.18.2. | B69: Perkančioji organizacija prašo1dalies 1.18 objekto pavyzdžio tiesios plokštelės 6 angų 1 vnt | H69: 1,3 mm storio tiesi užrakinama kompresinė plokštelė, pagaminta iš titano. Fiksuojama Ø 2,0 mm užrakinamais ir Ø 2,0 mm kortikaliniais sraigtais. 6 kiaurymių.
A70: 1.19. | B70: 1,3 ± 0,05 mm storio tiesi užrakinama kompresinė plokštelė, pagaminta iš titano. Fiksuojama Ø 2,0 mm užrakinamais ir Ø 2,0 mm kortikaliniais sraigtais. | C70: 5 | D70: vnt | E70: 43.56 | F70: =IF(ISBLANK(E70),"", PRODUCT(C70,E70)) -> 217.8 | G70: 29475407, katalogas 1, p. 56, Changzhou Kanghui Medical Innovation Co., Ltd. a Medtronic company
A71: 1.19.1. | B71: 7 kiaurymių | H71: 1,3 mm storio tiesi užrakinama kompresinė plokštelė, pagaminta iš titano. Fiksuojama Ø 2,0 mm užrakinamais ir Ø 2,0 mm kortikaliniais sraigtais. 7 kiaurymių.
A72: 1.20. | B72: 1,3 ± 0,05 mm storio tiesi užrakinama kompresinė plokštelė, pagaminta iš titano. Fiksuojama Ø 2,0 mm užrakinamais ir Ø 2,0 mm kortikaliniais sraigtais. | C72: 5 | D72: vnt | E72: 43.56 | F72: =IF(ISBLANK(E72),"", PRODUCT(C72,E72)) -> 217.8 | G72: 29475408, katalogas 1, p. 56, Changzhou Kanghui Medical Innovation Co., Ltd. a Medtronic company
A73: 1.20.1. | B73: 8 kiaurymių | H73: 1,3 mm storio tiesi užrakinama kompresinė plokštelė, pagaminta iš titano. Fiksuojama Ø 2,0 mm užrakinamais ir Ø 2,0 mm kortikaliniais sraigtais. 8 kiaurymių.
A74: 1.21. | B74: 2,0 mm kortikaliniai sraigtai, pilnu sriegiu, 8, 10, 12, 14, 16, 18, 20 mm ilgio. Pagaminti iš titano lydinio. | C74: 440 | D74: vnt. | E74: 5.16 | F74: =IF(ISBLANK(E74),"", PRODUCT(C74,E74)) -> 2270.4 | G74: 30302106 - 30302120, katalogas 1, p. 106, Changzhou Kanghui Medical Innovation Co., Ltd. a Medtronic company
A75: 1.21.1. | B75: 2,0 mm kortikaliniai sraigtai, pilnu sriegiu, 8, 10, 12, 14, 16, 18, 20 mm ilgio. Pagaminti iš titano lydinio. | H75: 2,0 mm kortikaliniai sraigtai, pilnu sriegiu, 6, 8, 10, 12, 14, 16, 18, 20 mm ilgio. Pagaminti iš titano lydinio.
A76: 1.21.2. | B76: Perkančioji organizacija prašo 1 dalies 1.21 objekto pavyzdžio 2,0mm kortikaliniai sraigtai pilnu sriegiu 12 mm ilgio - 1vnt. | H76: 2,0 mm kortikaliniai sraigtai, pilnu sriegiu, 12 mm ilgio. Pagaminti iš titano lydinio.
A77: 1.22. | B77: 2,0 mm užrakinami sraigtai, pilnu sriegiu, dvejopų sriegių (užsriegta ir sraigto galvutė), pagaminti iš titano lydinio. Sukami šešiakampės žvaigždės formos atsuktuvu. | C77: 1300 | D77: vnt | E77: 18.81 | F77: =IF(ISBLANK(E77),"", PRODUCT(C77,E77)) -> 24453 | G77: 39475606 - 39475613, katalogas 1, p. 58, Changzhou Kanghui Medical Innovation Co., Ltd. a Medtronic company
A78: 1.22.1. | B78: Nuo 6 mm iki 13 mm kas 1 mm | H78: 2,0 mm užrakinami sraigtai, pilnu sriegiu, dvejopų sriegių (užsriegta ir sraigto galvutė), pagaminti iš titano lydinio. Sukami šešiakampės žvaigždės formos atsuktuvu. Nuo 6 mm iki 13 mm kas 1 mm.
A79: 1.22.2. | B79: Perkančioji organizacija prašo 1 dalies 1.22 objekto pavyzdžio: 2,0 mm užrakinami sraigtai pilnu sriegiu 13 mm ilgio - 1 vnt | H79: 2,0 mm užrakinami sraigtai, pilnu sriegiu, dvejopų sriegių (užsriegta ir sraigto galvutė), pagaminti iš titano lydinio. Sukami šešiakampės žvaigždės formos atsuktuvu. 13 mm ilgio.
A80: 1.23. | B80: 2,0 mm užrakinami sraigtai, pilnu sriegiu, dvejopų sriegių (užsriegta ir sraigto galvutė), pagaminti iš titano lydinio. Sukami šešiakampės žvaigždės formos atsuktuvu. | C80: 560 | D80: vnt | E80: 22.59 | F80: =IF(ISBLANK(E80),"", PRODUCT(C80,E80)) -> 12650.4 | G80: 39475614 - 39475630, katalogas 1, p. 58, Changzhou Kanghui Medical Innovation Co., Ltd. a Medtronic company
A81: 1.23.1. | B81: Nuo 14 mm iki 30 mm kas 2 mm | H81: 2,0 mm užrakinami sraigtai, pilnu sriegiu, dvejopų sriegių (užsriegta ir sraigto galvutė), pagaminti iš titano lydinio. Sukami šešiakampės žvaigždės formos atsuktuvu. Nuo 14 mm iki 30 mm kas 2 mm.
A82: 1.24. | B82: 2,0 mm kortikaliniai sraigtai, pilnu sriegiu, pagaminti iš titano lydinio. Sukami šešiakampės žvaigždės formos atsuktuvu. | C82: 740 | D82: vnt | E82: 4.71 | F82: =IF(ISBLANK(E82),"", PRODUCT(C82,E82)) -> 3485.4 | G82: 39475506 - 39475513, katalogas 1, p. 58, Changzhou Kanghui Medical Innovation Co., Ltd. a Medtronic company
A83: 1.24.1. | B83: Nuo 6 mm iki 13 mm kas 1 mm | H83: 2,0 mm kortikaliniai sraigtai, pilnu sriegiu, pagaminti iš titano lydinio. Sukami šešiakampės žvaigždės formos atsuktuvu. Nuo 6 mm iki 13 mm kas 1 mm.
A84: 1.24.2. | B84: Perkančioji organizacija prašo 1 dalies 1.24 objekto pavyzdžio: 2,0 mm kortikaliniai sraigtai pilnu sriegiu, sukami šešiakampės žvaigždės formos atsuktuvu, 13 mm ilgio - 1 vnt. | H84: 2,0 mm kortikaliniai sraigtai, pilnu sriegiu, pagaminti iš titano lydinio. Sukami šešiakampės žvaigždės formos atsuktuvu. 13 mm ilgio.
A85: 1.25. | B85: 2,0 mm kortikaliniai sraigtai, pilnu sriegiu, pagaminti iš titano lydinio. Sukami šešiakampės žvaigždės formos atsuktuvu. | C85: 580 | D85: vnt | E85: 5.64 | F85: =IF(ISBLANK(E85),"", PRODUCT(C85,E85)) -> 3271.2 | G85: 39475514 - 39475530, katalogas 1, p. 58, Changzhou Kanghui Medical Innovation Co., Ltd. a Medtronic company
A86: 1.25.1. | B86: Nuo 14 mm iki 30 mm kas 2 mm | H86: 2,0 mm kortikaliniai sraigtai, pilnu sriegiu, pagaminti iš titano lydinio. Sukami šešiakampės žvaigždės formos atsuktuvu. Nuo 14 mm iki 30 mm kas 2 mm.
A87: 1.26. | B87: Atsuktuvas Ø 2,0 mm kortikaliniams sraigtams | C87: 5 | D87: vnt. | E87: 31.74 | F87: =IF(ISBLANK(E87),"", PRODUCT(C87,E87)) -> 158.7 | G87: 01211, katalogas 1, p. 112, Changzhou Kanghui Medical Innovation Co., Ltd. a Medtronic company
A88: 1.26.1. | B88: 1,5 mm pločio | H88: Atsuktuvas Ø 2,0 mm kortikaliniams sraigtams, 1,5 mm pločio.
A89: 1.27. | B89: Atsuktuvas Ø 2,0 mm užrakinamiems sraigtams | C89: 2 | D89: vnt. | E89: 62.44 | F89: =IF(ISBLANK(E89),"", PRODUCT(C89,E89)) -> 124.88 | G89: 98099, katalogas 1, p. 63, Changzhou Kanghui Medical Innovation Co., Ltd. a Medtronic company
A90: 1.27.1. | B90: Šešiakampės žvaigždės formos | H90: Atsuktuvas Ø 2,0 mm užrakinamiems sraigtams, šešiakampės žvaigždės formos.
A91: 1.28. | B91: Sraigtų laikymo įvore | C91: 2 | D91: vnt. | E91: 37.18 | F91: =IF(ISBLANK(E91),"", PRODUCT(C91,E91)) -> 74.36 | G91: 98097, katalogas 1, p. 63, Changzhou Kanghui Medical Innovation Co., Ltd. a Medtronic company
A92: 1.28.1. | B92: Ø 2,0 mm užrakinamiems sraigtams | H92: Sraigtų laikymo įvore Ø 2,0 mm užrakinamiems sraigtams
A93: 1.29. | B93: Kiršnerio viela, kurios vienas galas užaštrintas | C93: 40 | D93: vnt. | E93: 1.72 | F93: =IF(ISBLANK(E93),"", PRODUCT(C93,E93)) -> 68.8 | G93: 10701070, katalogas 1, p. 200, Changzhou Kanghui Medical Innovation Co., Ltd. a Medtronic company
A94: 1.29.1. | B94: Vielos ilgis 70 mm, skersmuo 0,8 mm | H94: Kiršnerio viela, kurios vienas galas užaštrintas, vielos ilgis 70 mm, skersmuo 0,8 mm
A95: 1.30. | B95: Kiršnerio viela, kurios vienas galas užaštrintas | C95: 20 | D95: vnt. | E95: 1.72 | F95: =IF(ISBLANK(E95),"", PRODUCT(C95,E95)) -> 34.4 | G95: 10701120, katalogas 1, p. 200, Changzhou Kanghui Medical Innovation Co., Ltd. a Medtronic company
A96: 1.30.1. | B96: Vielos ilgis 120 mm, skersmuo 0,8 mm | H96: Kiršnerio viela, kurios vienas galas užaštrintas, vielos ilgis 120 mm, skersmuo 0,8 mm
A97: 1.31. | B97: Kiršnerio viela, kurios vienas galas užaštrintas | C97: 10 | D97: vnt. | E97: 1.72 | F97: =IF(ISBLANK(E97),"", PRODUCT(C97,E97)) -> 17.2 | G97: 10702120, katalogas 1, p. 200, Changzhou Kanghui Medical Innovation Co., Ltd. a Medtronic company
A98: 1.31.1. | B98: Vielos ilgis 120 mm, skersmuo 1,0 mm | H98: Kiršnerio viela, kurios vienas galas užaštrintas, vielos ilgis 120 mm, skersmuo 1,0 mm
A99: 1.32. | B99: Kiršnerio viela, kurios vienas galas užaštrintas | C99: 10 | D99: vnt. | E99: 1.72 | F99: =IF(ISBLANK(E99),"", PRODUCT(C99,E99)) -> 17.2 | G99: 10702150, katalogas 1, p. 200, Changzhou Kanghui Medical Innovation Co., Ltd. a Medtronic company
A100: 1.32.1. | B100: Vielos ilgis 150 mm, skersmuo 1,0 mm | H100: Kiršnerio viela, kurios vienas galas užaštrintas, vielos ilgis 150 mm, skersmuo 1,0 mm
A101: 1.33. | B101: Kiršnerio viela, kurios vienas galas užaštrintas | C101: 10 | D101: vnt. | E101: 1.72 | F101: =IF(ISBLANK(E101),"", PRODUCT(C101,E101)) -> 17.2 | G101: 10702250, katalogas 1, p. 200, Changzhou Kanghui Medical Innovation Co., Ltd. a Medtronic company
A102: 1.33.1. | B102: Vielos ilgis 250 mm, skersmuo 1,0 mm | H102: Kiršnerio viela, kurios vienas galas užaštrintas, vielos ilgis 250 mm, skersmuo 1,0 mm
A103: 1.34. | B103: Kiršnerio viela, kurios vienas galas užaštrintas | C103: 10 | D103: vnt. | E103: 1.72 | F103: =IF(ISBLANK(E103),"", PRODUCT(C103,E103)) -> 17.2 | G103: 10702300, katalogas 1, p. 200, Changzhou Kanghui Medical Innovation Co., Ltd. a Medtronic company
A104: 1.34.1. | B104: Vielos ilgis 300 mm, skersmuo 1,0 mm | H104: Kiršnerio viela, kurios vienas galas užaštrintas, vielos ilgis 300 mm, skersmuo 1,0 mm
A105: 1.35. | B105: Grąžtas | C105: 20 | D105: vnt. | E105: 21.28 | F105: =IF(ISBLANK(E105),"", PRODUCT(C105,E105)) -> 425.6 | G105: 00103, katalogas 1, p. 111, Changzhou Kanghui Medical Innovation Co., Ltd. a Medtronic company
A106: 1.35.1. | B106: Ø 2,0 mm | H106: Grąžtas Ø 2,0 mm
A107: 1.36. | B107: Grąžtas | C107: 20 | D107: vnt | E107: 21.28 | F107: =IF(ISBLANK(E107),"", PRODUCT(C107,E107)) -> 425.6 | G107: 00102, katalogas 1, p. 111, Changzhou Kanghui Medical Innovation Co., Ltd. a Medtronic company
A108: 1.36.1. | B108: Ø 1,5 mm | H108: Grąžtas Ø 1,5 mm
A109: 1.37. | B109: Instrumentai, skirti rankų ir pėdų kaulams fiksuoti. Privaloma pateikti 2 instrumentų rinkinius panaudos būdu. Plokštelės, sraigtai ir instrumentai privalo būti pagaminti to paties gamintojo. Vieno rinkinio sudėtis | C109: 2 | D109: rinkinys | E109: 0 | F109: =IF(ISBLANK(E109),"", PRODUCT(C109,E109)) -> 0 | G109: 01900, katalogas 1, p. 109, Changzhou Kanghui Medical Innovation Co., Ltd. a Medtronic company
A110: 1.37.1. | B110: Sriegiklis, kortikalinis Ø 2,0 mm sraigtams - 1 vnt | H110: Sriegiklis, kortikalinis Ø 2,0 mm sraigtams
A111: 1.37.2. | B111: 2.0 mm implantų ir instrumentų sterilizavimo konteineris - 1vnt. | H111: 2.0 mm implantų ir instrumentų sterilizavimo konteineris
A112: 1.37.3. | B112: Atsuktuvas 1,5 mm pločio, sraigtams su kvadratiniu sukimu - 2 vnt. | H112: Atsuktuvas 1,5 mm pločio, sraigtams su kvadratiniu sukimu
A113: 1.37.4. | B113: Grąžtas Ø 1,5 mm - 2 vnt | H113: Grąžtas Ø 1,5 mm
A114: 1.37.5. | B114: Universalus grąžto nukreipėjas Ø 2,0 mm - 1 vnt. | H114: Universalus grąžto nukreipėjas Ø 2,0 mm
A115: 1.37.6. | B115: Sraigto prasukta galva išėmėjas Ø 2,0 mm sraigtams - 1 vnt. | H115: Sraigto prasukta galva išėmėjas Ø 2,0 mm sraigtams
A116: 1.37.7. | B116: Sterilizavimo konteineris 2,0 mm rinkinio instrumentams, plokštelėms ir sraigtams. Su skylutėmis sraigtams ir vietomis plokštelėms ir instrumentams. Su sraigtų ilgio matuokle - 1 vnt. | H116: Sterilizavimo konteineris 2,0 mm rinkinio instrumentams, plokštelėms ir sraigtams Su skylutėmis sraigtams ir vietomis plokštelėms ir instrumentams. Su sraigtų ilgio matuokle.
A117: 1.37.8. | B117: Dėžė instrumentų ir 3 rinkinių dėklų sterilizavimui - 1 vnt. | H117: Dėžė instrumentų ir 3 rinkinių dėklų sterilizavimui
A118: 1.37.9. | B118: Dėžė 2.0 LCP bendrųjų instrumentų sterilizavimui - 1 vnt. | H118: Dėžė 2.0 LCP bendrųjų instrumentų sterilizavimui
A119: 1.37.10. | B119: Rankenėlė su greito prijungimo mova - 2 vnt | H119: Rankenėlė su greito prijungimo mova
A120: 1.37.11. | B120: Sraigtų laikymo replės - 1 vnt. | H120: Sraigtų laikymo replės
A121: 1.37.12. | B121: Plokštelių laikymo replės 2.0 - 1 vnt. | H121: Plokštelių laikymo replės 2.0
A122: 1.37.13. | B122: Užsifiksuojančios plokštelių laikymo replės - 1 vnt | H122: Užsifiksuojančios plokštelių laikymo replės
A123: 1.37.14. | B123: Rankenėlė su greito prijungimo mova Ø 4,5 mm - 2 vnt | H123: Rankenėlė su greito prijungimo mova Ø 4,5 mm
A124: 1.37.15. | B124: Lenkėjai plokštelėms - 2 vnt. | H124: Lenkėjai plokštelėms
A125: 1.37.16. | B125: Aštrios žnyplės lūžgalių reparacijai ir fiksacijai (siauros), 150 ± 3,0 mm ilgio, užsifiksuojančios - 1 vnt. | H125: Aštrios žnyplės lūžgalių reparacijai ir fiksacijai (siauros) 150 mm ilgio, užsifiksuojančios
A126: 1.37.17. | B126: Aštrios žnyplės dantytais galais 150 ± 3,0 mm ilgio, užsifiksuojančios - 1 vnt. | H126: Aštrios žnyplės dantytais galais 150 mm ilgio, užsifiksuojančios
A127: 1.37.18. | B127: Aštrus kabliukas 155 ± 3,0 mm ilgio - 1 vnt | H127: Aštrus kabliukas 155 mm ilgio
A128: 1.37.19. | B128: Antkaulio elevatorius 160 ± 3,0 mm ilgio, 3 mm pločio, vienas galas tiesus, kitas galas apvalus - 1 vnt | H128: Antkaulio elevatorius 160 mm ilgio, 3 mm pločio, vienas galas tiesus, kitas galas apvalus
A129: 1.37.20. | B129: Antkaulio elevatorius 160 ± 3,0 mm ilgio, 6 mm pločio, vienas galas tiesus, kitas galas apvalus - 1 vn | H129: Antkaulio elevatorius 160 mm ilgio, 6 mm pločio, vienas galas tiesus, kitas galas apvalus
A130: 1.37.21. | B130: Gylio matuoklis. Skalė 0 - 40 mm - 1 vnt | H130: Gylio matuoklis, skalė 0 - 40 mm
A131: 1.37.22. | B131: Plokštelės laikiklis 165 ± 3,0 mm ilgio, užsifiksuojantis - 1 vnt. | H131: Plokštelės laikiklis 165 mm ilgio, užsifiksuojantis
A132: 1.37.23. | B132: Retraktorius. Ilgis 160 ± 3,0 mm, plotis 6 mm - 1 vnt. | H132: Retraktorius, ilgis 160 mm, plotis 6 mm
A133: 1.37.24. | B133: Retraktorius. Ilgis 160 ± 3,0 mm, plotis 8 mm - 1 vnt. | H133: Retraktorius, ilgis 160 mm, plotis 8 mm
A134: 1.37.25. | B134: Retraktorius. Ilgis 160 ± 3,0 mm, plotis 15 mm - 1 vnt. | H134: Retraktorius, ilgis 160 mm, plotis 15 mm
A135: 1.37.26. | B135: Plokštelių lenkiklis, įsisukantis į plokštelę Ø 2,0 mm - | H135: Plokštelių lenkiklis, įsisukantis į plokštelę Ø 2,0 mm
A136: 1.37.27. | B136: Kiaurymės gylio matuoklis Ø 2,0 mm sraigtams - 1 vnt. | H136: Kiaurymės gylio matuoklis Ø 2,0 mm sraigtams
A137: 1.37.28. | B137: Dvipusis grąžto kreiptuvas su slankiojančiu nukreipėju Ø 1,5 ir 2,0 mm grąžtams - 1 vnt. | H137: Dvipusis grąžto kreiptuvas su slankiojančiu nukreipėju Ø 1,5 ir 2,0 mm grąžtams
A138: 1.37.29. | B138: Grąžtas Ø 1,5 mm - 2 vnt. | H138: Grąžtas Ø 1,5 mm
A139: 1.37.30. | B139: Grąžtas Ø 2,0 mm - 2 vnt. | H139: Grąžtas Ø 2,0 mm
A140: 1.37.31. | B140: Angos platintuvas kaule Ø 2,0 mm - 2 vnt. | H140: Angos platintuvas kaule Ø 2,0 mm
A141: 1.37.32. | B141: Atsuktuvas Ø 2,0 mm - 2 vnt. | H141: Atsuktuvas Ø 2,0 mm
A142: 1.37.33. | B142: Sraigtų laikymo įvore Ø 2,0 mm - 2 vnt. | H142: Sraigtų laikymo įvore Ø 2,0 mm
E143: Suma be PVM | F143: =IF((COUNT(C30:C142)<>COUNT(F30:F142)),"", SUM(F30:F142)) -> 76987.19 | G143: =IF((COUNT(C30:C142)<>COUNT(F30:F142)),"Neužpildytos visų objektų kainos", SUM(F30:F142)) -> 76987.19
E144: PVM suma | F144: 4042.82
E145: Suma su PVM | F145: =IF(ISBLANK(F144), "", SUM(F143:F144)) -> 81030.01
A147: 2. | B147: Intramedulinės vinys ir sraigtai
A148: 2.1. | B148: Ø 7,0 mm intramedulinės žąstikaulio vinys, pagamintos iš titano lydinio. | C148: 1 | D148: vnt. | E148: 125.02 | F148: =IF(ISBLANK(E148),"", PRODUCT(C148,E148)) -> 125.02 | G148: 30961018, katalogas 3, p. 135, Changzhou Kanghui Medical Innovation Co., Ltd. a Medtronic company
A149: 2.1.1. | B149: 7 mm x 180 mm | H149: Ø 7,0 mm intramedulinės žąstikaulio vinys, pagamintos iš titano lydinio, 7 mm x 180 mm
A150: 2.2. | B150: Ø 7,0 mm intramedulinės žąstikaulio vinys, pagamintos iš titano lydinio. | C150: 1 | D150: vnt. | E150: 125.02 | F150: =IF(ISBLANK(E150),"", PRODUCT(C150,E150)) -> 125.02 | G150: 30961020, katalogas 3, p. 135, Changzhou Kanghui Medical Innovation Co., Ltd. a Medtronic company
A151: 2.2.1. | B151: 7 mm x 200 mm | H151: Ø 7,0 mm intramedulinės žąstikaulio vinys, pagamintos iš titano lydinio, 7 mm x 200 mm
A152: 2.3. | B152: Ø 7,0 mm intramedulinės žąstikaulio vinys, pagamintos iš titano lydinio. | C152: 1 | D152: vnt. | E152: 136.47 | F152: =IF(ISBLANK(E152),"", PRODUCT(C152,E152)) -> 136.47 | G152: 30961022, katalogas 3, p. 135, Changzhou Kanghui Medical Innovation Co., Ltd. a Medtronic company
A153: 2.3.1. | B153: 7 mm x 220 mm | H153: Ø 7,0 mm intramedulinės žąstikaulio vinys, pagamintos iš titano lydinio, 7 mm x 220 mm
A154: 2.4. | B154: Ø 7,0 mm intramedulinės žąstikaulio vinys, pagamintos iš titano lydinio. | C154: 1 | D154: vnt. | E154: 136.47 | F154: =IF(ISBLANK(E154),"", PRODUCT(C154,E154)) -> 136.47 | G154: 30961024, katalogas 3, p. 135, Changzhou Kanghui Medical Innovation Co., Ltd. a Medtronic company
A155: 2.4.1. | B155: 7 mm x 240 mm | H155: Ø 7,0 mm intramedulinės žąstikaulio vinys, pagamintos iš titano lydinio, 7 mm x 240 mm
A156: 2.4.2. | B156: Perkančioji organizacija prašo 2 dalies 2.4 objekto pavyzdžio - 1 vnt | H156: Ø 7,0 mm intramedulinės žąstikaulio vinys, pagamintos iš titano lydinio, 7 mm x 240 mm
A157: 2.5. | B157: Ø 7,0 mm intramedulinės žąstikaulio vinys, pagamintos iš titano lydinio. | C157: 1 | D157: vnt. | E157: 136.47 | F157: =IF(ISBLANK(E157),"", PRODUCT(C157,E157)) -> 136.47 | G157: 30961026, katalogas 3, p. 135, Changzhou Kanghui Medical Innovation Co., Ltd. a Medtronic company
A158: 2.5.1. | B158: 7 mm x 260 mm | H158: Ø 7,0 mm intramedulinės žąstikaulio vinys, pagamintos iš titano lydinio, 7 mm x 260 mm
A159: 2.6. | B159: Ø 7,0 mm intramedulinės žąstikaulio vinys, pagamintos iš titano lydinio. | C159: 1 | D159: vnt. | E159: 136.47 | F159: =IF(ISBLANK(E159),"", PRODUCT(C159,E159)) -> 136.47 | G159: 30961028, katalogas 3, p. 135, Changzhou Kanghui Medical Innovation Co., Ltd. a Medtronic company
A160: 2.6.1. | B160: 7 mm x 280 mm | H160: Ø 7,0 mm intramedulinės žąstikaulio vinys, pagamintos iš titano lydinio, 7 mm x 280 mm
A161: 2.7. | B161: Ø 7,0 mm intramedulinės žąstikaulio vinys, pagamintos iš titano lydinio. | C161: 1 | D161: vnt. | E161: 136.47 | F161: =IF(ISBLANK(E161),"", PRODUCT(C161,E161)) -> 136.47 | G161: 30961030, katalogas 3, p. 135, Changzhou Kanghui Medical Innovation Co., Ltd. a Medtronic company
A162: 2.7.1. | B162: 7 mm x 300 mm | H162: Ø 7,0 mm intramedulinės žąstikaulio vinys, pagamintos iš titano lydinio, 7 mm x 300 mm
A163: 2.8. | B163: Ø 8,0 mm intramedulinės žąstikaulio vinys, pagamintos iš titano lydinio. | C163: 2 | D163: vnt. | E163: 125.02 | F163: =IF(ISBLANK(E163),"", PRODUCT(C163,E163)) -> 250.04 | G163: 30962018, katalogas 3, p. 135, Changzhou Kanghui Medical Innovation Co., Ltd. a Medtronic company
A164: 2.8.1. | B164: 8 mm x 180 mm | H164: Ø 8,0 mm intramedulinės žąstikaulio vinys, pagamintos iš titano lydinio, 8 mm x 180 mm
A165: 2.9. | B165: Ø 8,0 mm intramedulinės žąstikaulio vinys, pagamintos iš titano lydinio. | C165: 2 | D165: vnt. | E165: 125.02 | F165: =IF(ISBLANK(E165),"", PRODUCT(C165,E165)) -> 250.04 | G165: 30962020, katalogas 3, p. 135, Changzhou Kanghui Medical Innovation Co., Ltd. a Medtronic company
A166: 2.9.1. | B166: 8 mm x 200 mm | H166: Ø 8,0 mm intramedulinės žąstikaulio vinys, pagamintos iš titano lydinio, 8 mm x 200 mm
A167: 2.10. | B167: Ø 8,0 mm intramedulinės žąstikaulio vinys, pagamintos iš titano lydinio. | C167: 6 | D167: vnt. | E167: 146.47 | F167: =IF(ISBLANK(E167),"", PRODUCT(C167,E167)) -> 878.82 | G167: 30962022, katalogas 3, p. 135, Changzhou Kanghui Medical Innovation Co., Ltd. a Medtronic company
A168: 2.10.1. | B168: 8 mm x 220 mm | H168: Ø 8,0 mm intramedulinės žąstikaulio vinys, pagamintos iš titano lydinio, 8 mm x 220 mm
A169: 2.11. | B169: Ø 8,0 mm intramedulinės žąstikaulio vinys, pagamintos iš titano lydinio. | C169: 8 | D169: vnt. | E169: 146.47 | F169: =IF(ISBLANK(E169),"", PRODUCT(C169,E169)) -> 1171.76 | G169: 30962024, katalogas 3, p. 135, Changzhou Kanghui Medical Innovation Co., Ltd. a Medtronic company
A170: 2.11.1. | B170: 8 mm x 240 mm | H170: Ø 8,0 mm intramedulinės žąstikaulio vinys, pagamintos iš titano lydinio, 8 mm x 240 mm
A171: 2.11.2. | B171: Perkančioji organizacija prašo 2 dalies 2.11 objekto pavyzdžio - 1 vnt | H171: Ø 8,0 mm intramedulinės žąstikaulio vinys, pagamintos iš titano lydinio, 8 mm x 240 mm
A172: 2.12. | B172: Ø 8,0 mm intramedulinės žąstikaulio vinys, pagamintos iš titano lydinio. | C172: 2 | D172: vnt. | E172: 146.47 | F172: =IF(ISBLANK(E172),"", PRODUCT(C172,E172)) -> 292.94 | G172: 30962026, katalogas 3, p. 135, Changzhou Kanghui Medical Innovation Co., Ltd. a Medtronic company
A173: 2.12.1. | B173: 8 mm x 260 mm | H173: Ø 8,0 mm intramedulinės žąstikaulio vinys, pagamintos iš titano lydinio, 8 mm x 260 mm
A174: 2.13. | B174: Ø 8,0 mm intramedulinės žąstikaulio vinys, pagamintos iš titano lydinio. | C174: 2 | D174: vnt. | E174: 146.47 | F174: =IF(ISBLANK(E174),"", PRODUCT(C174,E174)) -> 292.94 | G174: 30962028, katalogas 3, p. 135, Changzhou Kanghui Medical Innovation Co., Ltd. a Medtronic company
A175: 2.13.1. | B175: 8 mm x 280 mm | H175: Ø 8,0 mm intramedulinės žąstikaulio vinys, pagamintos iš titano lydinio, 8 mm x 280 mm
A176: 2.14. | B176: Ø 8,0 mm intramedulinės žąstikaulio vinys, pagamintos iš titano lydinio. | C176: 1 | D176: vnt. | E176: 146.47 | F176: =IF(ISBLANK(E176),"", PRODUCT(C176,E176)) -> 146.47 | G176: 30962030, katalogas 3, p. 135, Changzhou Kanghui Medical Innovation Co., Ltd. a Medtronic company
A177: 2.14.1. | B177: 8 mm x 300 mm | H177: Ø 8,0 mm intramedulinės žąstikaulio vinys, pagamintos iš titano lydinio, 8 mm x 300 mm
A178: 2.15. | B178: Ø 9,0 mm intramedulinės žąstikaulio vinys, pagamintos iš titano lydinio. | C178: 3 | D178: vnt. | E178: 125.02 | F178: =IF(ISBLANK(E178),"", PRODUCT(C178,E178)) -> 375.06 | G178: 30963018, katalogas 3, p. 135, Changzhou Kanghui Medical Innovation Co., Ltd. a Medtronic company
A179: 2.15.1. | B179: 9 mm x 180 mm | H179: Ø 9,0 mm intramedulinės žąstikaulio vinys, pagamintos iš titano lydinio, 9 mm x 180 mm
A180: 2.16. | B180: Ø 9,0 mm intramedulinės žąstikaulio vinys, pagamintos iš titano lydinio. | C180: 14 | D180: vnt. | E180: 146.47 | F180: =IF(ISBLANK(E180),"", PRODUCT(C180,E180)) -> 2050.58 | G180: 30963020, katalogas 3, p. 135, Changzhou Kanghui Medical Innovation Co., Ltd. a Medtronic company
A181: 2.16.1. | B181: 9 mm x 200 mm | H181: Ø 9,0 mm intramedulinės žąstikaulio vinys, pagamintos iš titano lydinio, 9 mm x 200 mm
A182: 2.17. | B182: Ø 9,0 mm intramedulinės žąstikaulio vinys, pagamintos iš titano lydinio. | C182: 25 | D182: vnt. | E182: 146.47 | F182: =IF(ISBLANK(E182),"", PRODUCT(C182,E182)) -> 3661.75 | G182: 30963022, katalogas 3, p. 135, Changzhou Kanghui Medical Innovation Co., Ltd. a Medtronic company
A183: 2.17.1. | B183: 9 mm x 220 mm | H183: Ø 9,0 mm intramedulinės žąstikaulio vinys, pagamintos iš titano lydinio, 9 mm x 220 mm
A184: 2.18. | B184: Ø 9,0 mm intramedulinės žąstikaulio vinys, pagamintos iš titano lydinio. | C184: 25 | D184: vnt. | E184: 146.47 | F184: =IF(ISBLANK(E184),"", PRODUCT(C184,E184)) -> 3661.75 | G184: 30963024, katalogas 3, p. 135, Changzhou Kanghui Medical Innovation Co., Ltd. a Medtronic company
A185: 2.18.1. | B185: 9 mm x 240 mm | H185: Ø 9,0 mm intramedulinės žąstikaulio vinys, pagamintos iš titano lydinio, 9 mm x 240 mm
A186: 2.18.2. | B186: Perkančioji organizacija prašo 2 dalies 2.18 objekto pavyzdžio - 1 vnt | H186: Ø 9,0 mm intramedulinės žąstikaulio vinys, pagamintos iš titano lydinio, 9 mm x 240 mm
A187: 2.19. | B187: Ø 9,0 mm intramedulinės žąstikaulio vinys, pagamintos iš titano lydinio. | C187: 15 | D187: vnt. | E187: 146.47 | F187: =IF(ISBLANK(E187),"", PRODUCT(C187,E187)) -> 2197.05 | G187: 30963026, katalogas 3, p. 135, Changzhou Kanghui Medical Innovation Co., Ltd. a Medtronic company
A188: 2.19.1. | B188: 9 mm x 260 mm | H188: Ø 9,0 mm intramedulinės žąstikaulio vinys, pagamintos iš titano lydinio, 9 mm x 260 mm
A189: 2.20. | B189: Ø 9,0 mm intramedulinės žąstikaulio vinys, pagamintos iš titano lydinio. | C189: 5 | D189: vnt. | E189: 146.47 | F189: =IF(ISBLANK(E189),"", PRODUCT(C189,E189)) -> 732.35 | G189: 30963028, katalogas 3, p. 135, Changzhou Kanghui Medical Innovation Co., Ltd. a Medtronic company
A190: 2.20.1. | B190: 9 mm x 280 mm | H190: Ø 9,0 mm intramedulinės žąstikaulio vinys, pagamintos iš titano lydinio, 9 mm x 280 mm
A191: 2.21. | B191: Ø 9,0 mm intramedulinės žąstikaulio vinys, pagamintos iš titano lydinio. | C191: 1 | D191: vnt. | E191: 146.47 | F191: =IF(ISBLANK(E191),"", PRODUCT(C191,E191)) -> 146.47 | G191: 30963030, katalogas 3, p. 135, Changzhou Kanghui Medical Innovation Co., Ltd. a Medtronic company
A192: 2.21.1. | B192: 9 mm x 300 mm | H192: Ø 9,0 mm intramedulinės žąstikaulio vinys, pagamintos iš titano lydinio, 9 mm x 300 mm
A193: 2.22. | B193: Ø 3,0 - 3,5 mm sraigtai, pagaminti iš titano lydinio. | C193: 100 | D193: vnt. | E193: 15.85 | F193: =IF(ISBLANK(E193),"", PRODUCT(C193,E193)) -> 1585 | G193: 30381120 - 30381160, katalogas 3, p. 136, Changzhou Kanghui Medical Innovation Co., Ltd. a Medtronic company
A194: 2.22.1. | B194: Nuo 20 mm iki 60 mm, ne mažiau 7 ilgių | H194: 3,5 mm sraigtai, pagaminti iš titano lydinio. Nuo 20 mm iki 60 mm kas 2 mm.
A195: 2.22.2. | B195: Perkančioji organizacija prašo 2 dalies 2.22 objekto pavyzdžio - 1 vnt pasirinktinai | H195: 3,5 mm sraigtai, pagaminti iš titano lydinio, 26 mm ilgio.
A196: 2.23. | B196: Ø 4,0 - 4,8 mm sraigtai, pagaminti iš titano lydinio. | C196: 260 | D196: vnt. | E196: 17.53 | F196: =IF(ISBLANK(E196),"", PRODUCT(C196,E196)) -> 4557.8 | G196: 30382120 - 30382160, katalogas 3, p. 136, Changzhou Kanghui Medical Innovation Co., Ltd. a Medtronic company
A197: 2.23.1. | B197: Nuo 20 mm iki 60 mm, ne mažiau 8 ilgių | H197: Ø 4,8 mm sraigtai, pagaminti iš titano lydinio. Nuo 20 mm iki 60 mm kas 2 mm.
A198: 2.23.2. | B198: Perkančioji organizacija prašo 2 dalies 2.23 objekto pavyzdžio - 1 vnt pasirinktinai | H198: Ø 4,8 mm sraigtai, pagaminti iš titano lydinio, 28 mm ilgio.
A199: 2.24. | B199: Ø 4,5 - 5,0 mm sraigtai, pagaminti iš titano lydinio. | C199: 80 | D199: vnt. | E199: 17.53 | F199: =IF(ISBLANK(E199),"", PRODUCT(C199,E199)) -> 1402.4 | G199: 30383130 - 30383160, katalogas 3, p. 136, Changzhou Kanghui Medical Innovation Co., Ltd. a Medtronic company
A200: 2.24.1. | B200: Nuo 20 mm iki 60 mm, ne mažiau 8 ilgių | H200: Ø 5,0 mm sraigtai, pagaminti iš titano lydinio. Nuo 30 mm iki 60 mm kas 2 mm.
A201: 2.24.2. | B201: Perkančioji organizacija prašo 2 dalies 2.24 objekto pavyzdžio - 1 vnt pasirinktinai | H201: Ø 5,0 mm sraigtai, pagaminti iš titano lydinio, 38 mm ilgio.
A202: 2.25. | B202: Žąstikaulio vinies aklė, pagaminta iš titano lydinio. | C202: 40 | D202: vnt. | E202: 11.91 | F202: =IF(ISBLANK(E202),"", PRODUCT(C202,E202)) -> 476.4 | G202: 30964000, katalogas 3, p. 137, Changzhou Kanghui Medical Innovation Co., Ltd. a Medtronic company
A203: 2.25.1. | B203: Žąstikaulio vinies aklė, pagaminta iš titano lydinio. | H203: Žąstikaulio vinies aklė, pagaminta iš titano lydinio.
A204: 2.26. | B204: Kaniuliuotos titaninės šlaunikaulio vinys, įvedamos anterogradiškai. Proksimaliniame vinies gale yra ≥ 3 kiaurymės fiksuojantiems sraigtams. Distaliniame vinies gale yra ≥ 2 kiaurymes (viena iš jų pailga) skersinio fiksavimo sraigtams. Būtina galimybė naudoti ir kaip rekonstrukcinę vinį, su dviem Ø 6,3 - 7,5 mm skersinio tvirtinimo sraigtais proksimaliniame vinies gale. | C204: 60 | D204: vnt. | E204: 312.73 | F204: =IF(ISBLANK(E204),"", PRODUCT(C204,E204)) -> 18763.8 | G204: 33101132 - 33104244, katalogas 1, p. 159, Changzhou Kanghui Medical Innovation Co., Ltd. a Medtronic company
A205: 2.26.1. | B205: Vinių skersmenys 9-10, 10,5-11, 11,5-12 mm; Vinių ilgiai 320 – 440 mm kas 20 mm, ne mažiau 6 ilgių; Dešinės pusės, Kairės pusės. | H205: Kaniuliuotos titaninės šlaunikaulio vinys, įvedamos anterogradiškai. Proksimaliniame vinies gale yra 3 kiaurymės fiksuojantiems sraigtams. Distaliniame vinies gale yra 2 kiaurymės (viena iš jų pailga) skersinio fiksavimo sraigtams. Yra galimybė naudoti ir kaip rekonstrukcinę vinį, su dviem Ø 6,3 mm skersinio tvirtinimo sraigtais proksimaliniame vinies gale. Vinių skersmenys 9.5, 10, 11, 12 mm. Vinių ilgiai 320 – 440 mm kas 20 mm. Dešinės pusės, kairės pusės.
A206: 2.26.2. | B206: Perkančioji organizacija prašo 2 dalies 2.26 objekto pavyzdžio - 1 vnt pasirinktinai | H206: Kaniuliuotos titaninės šlaunikaulio vinys, įvedamos anterogradiškai. Proksimaliniame vinies gale yra 3 kiaurymės fiksuojantiems sraigtams. Distaliniame vinies gale yra 2 kiaurymės (viena iš jų pailga) skersinio fiksavimo sraigtams. Yra galimybė naudoti ir kaip rekonstrukcinę vinį, su dviem Ø 6,3 mm skersinio tvirtinimo sraigtais proksimaliniame vinies gale. 12 x 440 mm, kairės pusės.
A207: 2.27. | B207: Ø 4,5 - 5,5 mm sraigtai, pilnu sriegiu, pagaminti iš titano lydinio. Sraigto galvutėje yra vidinis sriegis, skirtas sraigto prisukimui prie atsuktuvo. | C207: 670 | D207: vnt. | E207: 32.24 | F207: =IF(ISBLANK(E207),"", PRODUCT(C207,E207)) -> 21600.8 | G207: 33111025 - 33111090, katalogas 1, p. 160; 33112025 - 33112092, katalogas 1, p. 160, Changzhou Kanghui Medical Innovation Co., Ltd. a Medtronic company
A208: 2.27.1. | B208: Nuo 25 mm iki 90 mm, ne mažiau 13 ilgių | H208: Ø 4,5 ir 5,0 mm sraigtai, pilnu sriegiu, pagaminti iš titano lydinio. Sraigto galvutėje yra vidinis sriegis, skirtas sraigto prisukimui prie atsuktuvo. Nuo 25 mm iki 90 mm, 14 ilgių.
A209: 2.27.2. | B209: Perkančioji organizacija prašo 2 dalies 2.27 objekto pavyzdžio - 1 vnt pasirinktinai | H209: Ø 4,5 ir 5,0 mm sraigtai, pilnu sriegiu, pagaminti iš titano lydinio. Sraigto galvutėje yra vidinis sriegis, skirtas sraigto prisukimui prie atsuktuvo. 4.5 x 35 mm; 5 x 40 mm.
A210: 2.28. | B210: Ø 6,3 - 7,5 mm rekonstrukciniai sraigtai, daliniu sriegiu, pagaminti iš titano lydinio. | C210: 80 | D210: vnt. | E210: 42.44 | F210: =IF(ISBLANK(E210),"", PRODUCT(C210,E210)) -> 3395.2 | G210: 33113065 - 33113097, katalogas 1, p. 160, Changzhou Kanghui Medical Innovation Co., Ltd. a Medtronic company
A211: 2.28.1. | B211: Nuo 65 mm iki 120 mm kas 5 mm | H211: Ø 6,3 mm rekonstrukciniai sraigtai, daliniu sriegiu, pagaminti iš titano lydinio. Nuo 65 mm iki 125 mm kas 5 mm.
A212: 2.28.2. | B212: Perkančioji organizacija prašo 2 dalies 2.28 objekto pavyzdžio - 1 vnt pasirinktinai | H212: Ø 6,3 mm rekonstrukciniai sraigtai, daliniu sriegiu, pagaminti iš titano lydinio. 6.3 x 100 mm.
... 267 more rows

Sheet Subtiekėjai
A2: Subtiekėjai ir jiems perduodama vykdyti pirkimo sutarties dalis:
A4: Eil. Nr | C4: Subtiekėjo pavadinimas | F4: Pirkimo objekto dalies, perduodamos vykdyti subtiekėjui, aprašymas | I4: Procentas perduodamos vykdyti pirkimo objekto dalies nuo pasiūlymo kainos su PVM (pildoma, jei ūkio subjektas vykdys sutartį)
A11: Kartu su pasiūlymu pateikiami šie dokumentai:
A13: Eil.Nr. | B13: Dokumentas | E13: Ar dokumnetas konfidencialus? (Taip/Ne) | G13: Prisegtos bylos (failo) pavadinimas | I13: Paaiškinimas, kokia konkreti informacija dokumente yra konfidenciali
A14: 1 | B14: EBVPD | E14: Ne | G14: EBVPD
A15: 2 | B15: Katalogas 1 | E15: Taip | G15: Katalogas 1 - KONFIDENCIALU | I15: Prekių parametrai
A16: 3 | B16: Katalogas 3 | E16: Taip | G16: Katalogas 3 - KONFIDENCIALU | I16: Prekių parametrai
A20: Pasirašydamas šį pasiūlymą, tvirtintu, kad: 1) pasiūlymo dokumentuose pateikti duomenys yra tikri; 2) siūlomas Pirkimo objektas visiškai atitinka Pirkimo dokumentuose nustatytus reikalavimus; 3) sutinku su visomis Pirkimo dokumentuose nustatytomis sąlygomis; 4) pasiūlymas galioja iki termino, nustatyto Pirkimo dokumentuose; 5) mes esame / nesame (nereikalingą išbraukti) laikomi asocijuotais (susijusiais) su Perkančiuoju subjektu pagal Lietuvos Respublikoje galiojančių teisės aktų (Lietuvos Respublikos pelno mokesčio, Lietuvos Respublikos pridėtinės vertės mokesčio ir Lietuvos Respublikos gyventojų pajamų mokesčio įstatymų) nuostatas; 6) savo pasiūlymo galiojimą užtikrinsiu pagal Specialiųjų sąlygų 6.1 punktą (jei taikoma).
A22: Pasiūlymo galiojimo užtikrinimui pateikiame :
A24: (Nurodyti užtikrinimo būdą, dydį, dokumentus)
A26: Pasiūlymas galioja iki termino, nustatyto pirkimo dokumentuose. Pasiūlymo neatskiriama dalis yra (rašoma, jeigu buvo reikalauta prie pasiūlymo pridėti atitinkamą dokumentą)
A30: Tiekėjo arba jo įgalioto asmens pareigų pavadinimas | E30: Direktorius
A33: Pasirašančio asmens vardas ir pavardė | E33: Gintaras Vaitkevičius
A100: 3410-1 2019-06-26 15:39:29
